bitfinex-derivatives/quotes_SOLF0:USTF0_20250309
["timestamp","ask_amount","ask_price","bid_price","bid_amount"]
[1741523037610,7.3705,135.7,135.69,1.491e-05]
[1741523037812,36.7705,135.7,135.69,1.491e-05]
[1741523038906,7.3694,135.72,135.69,1.491e-05]
[1741523040412,29.4,135.73,135.69,1.491e-05]
[1741523041212,7.3695,135.72,135.69,1.491e-05]
[1741523041612,29.4,135.73,135.69,1.491e-05]
[1741523041811,7.3699,135.71,135.69,1.491e-05]
[1741523043517,7.3695,135.72,135.69,1.491e-05]
[1741523043915,29.4,135.73,135.69,1.491e-05]
[1741523044116,7.3702,135.71,135.69,1.491e-05]
[1741523044618,7.3696,135.72,135.69,1.491e-05]
[1741523044915,29.4,135.73,135.69,1.491e-05]
[1741523045118,4.68648239,135.72,135.69,1.491e-05]
[1741523045418,12.05895596,135.71,135.69,1.491e-05]
[1741523045618,7.3699,135.71,135.69,1.491e-05]
[1741523046020,7.3705,135.7,135.69,1.491e-05]
[1741523046420,12.05994071,135.7,135.69,1.491e-05]
[1741523046622,4.68944071,135.7,135.69,1.491e-05]
[1741523046817,193.0,135.76,135.69,1.491e-05]
[1741523047117,7.3693,135.73,135.69,4.62561491]
[1741523047420,4.68994801,135.72,135.69,4.62561491]
[1741523047620,29.38,135.76,135.69,4.62561491]
[1741523047820,4.69073616,135.75,135.69,4.62561491]
[1741523048018,4.69073616,135.74,135.7,7.3699]
[1741523048219,141.8264006,135.78,135.71,2.2464]
[1741523048419,4.68888503,135.77,135.71,2.29974594]
[1741523048612,4.68888503,135.76,135.71,9.66934594]
[1741523048815,112.4464006,135.78,135.71,2.29974594]
[1741523049022,7.3678,135.75,135.71,2.29974594]
[1741523049222,112.4464006,135.78,135.71,2.29974594]
[1741523049420,4.6894089,135.77,135.71,2.29974594]
[1741523049623,7.3687,135.74,135.71,2.29974594]
[1741523049925,7.3687,135.74,135.71,64.29821551]
[1741523051025,29.38,135.8,135.71,64.29821551]
[1741523051225,7.3689,135.73,135.71,64.2464]
[1741523051522,29.38,135.8,135.71,64.3012912]
[1741523051719,7.3686,135.74,135.71,64.2464]
[1741523051924,29.38,135.8,135.74,0.04774744]
[1741523052123,29.38,135.8,135.71,2.2464]
[1741523052124,197.68052582,135.79,135.69,2.2594]
[1741523052320,202.32322582,135.78,135.67,221.08]
[1741523052525,4.68052582,135.77,135.65,221.08]
[1741523052726,7.3726,135.66,135.65,221.08]
[1741523053721,0.0477,135.67,135.65,221.08]
[1741523054424,0.0477,135.67,135.65,223.4896]
[1741523054624,29.38,135.7,135.65,223.4896]
[1741523054828,4.67781339,135.69,135.65,223.4896]
[1741523055022,29.38,135.7,135.65,223.4896]
[1741523055221,4.6777284,135.69,135.65,223.4896]
[1741523055425,30.66720016,135.75,135.65,223.4896]
[1741523055620,29.38,135.72,135.65,223.4896]
[1741523055817,7.3705,135.7,135.69,0.05039004]
[1741523056024,12.04702517,135.7,135.69,0.05039004]
[1741523056223,12.04808777,135.7,135.69,0.05039004]
[1741523058231,12.04873538,135.7,135.69,0.05039004]
[1741523058425,4.67823538,135.7,135.65,221.08]
[1741523058728,4.67823538,135.69,135.65,221.08]
[1741523059031,7.3726,135.66,135.65,221.08]
[1741523063427,48.40082692,135.76,135.64,0.05632302]
[1741523063626,48.40082692,135.76,135.62,4.649]
[1741523063627,4.67635904,135.75,135.65,29.38]
[1741523063931,4.67635904,135.74,135.71,7.3694]
[1741523064129,119.8134006,135.77,135.71,36.7494]
[1741523064329,4.67950141,135.76,135.71,29.38]
[1741523064532,30.66720016,135.74,135.71,29.38]
[1741523064730,23.30980016,135.74,135.72,0.04907771]
[1741523064929,16.96990016,135.74,135.72,0.04907771]
[1741523065533,16.96990016,135.74,135.73,7.3688]
[1741523066237,16.96990016,135.74,135.73,69.3688]
[1741523068138,81.77920044,135.86,135.73,62.0]
[1741523068338,7.3643,135.82,135.76,7.3669]
[1741523068541,7.3643,135.82,135.77,0.04810769]
[1741523070442,9.6588,135.83,135.78,7.3659]
[1741523070642,2.2954,135.83,135.77,0.04810769]
[1741523071032,7.3643,135.82,135.77,7.41470769]
[1741523071639,7.3643,135.82,135.77,0.04810769]
[1741523072144,7.3643,135.82,135.77,7.41440769]
[1741523073048,7.3649,135.81,135.77,0.04810769]
[1741523073849,7.3649,135.81,135.77,7.41450769]
[1741523074943,7.3649,135.81,135.77,0.04810769]
[1741523076049,7.3649,135.81,135.77,7.41480769]
[1741523078550,2.2954,135.83,135.78,7.3658]
[1741523079146,2.2954,135.83,135.77,0.04810769]
[1741523079147,7.3647,135.81,135.77,7.41470769]
[1741523079344,2.2954,135.83,135.77,0.04810769]
[1741523079542,7.3649,135.81,135.77,0.04810769]
[1741523079748,2.2954,135.83,135.77,0.04810769]
[1741523080145,7.3653,135.8,135.77,0.04810769]
[1741523080949,2.2954,135.83,135.77,0.04810769]
[1741523082041,2.2954,135.83,135.78,7.3657]
[1741523082351,2.2954,135.83,135.77,0.04810769]
[1741523083353,7.3653,135.8,135.77,0.04810769]
[1741523083552,2.2954,135.83,135.75,29.36]
[1741523083757,7.3654,135.8,135.75,36.7274]
[1741523084053,2.2954,135.83,135.75,36.7274]
[1741523084256,2.2954,135.83,135.75,29.36]
[1741523084455,7.365,135.81,135.76,7.3672]
[1741523084657,0.04810769,135.8,135.78,0.04741434]
[1741523085255,7.41320769,135.8,135.78,0.04741434]
[1741523086057,0.04810769,135.8,135.78,0.04741434]
[1741523087360,7.41320769,135.8,135.78,0.04741434]
[1741523087960,0.04810769,135.8,135.78,0.04741434]
[1741523088164,7.3656,135.79,135.78,0.04741434]
[1741523089860,0.04810769,135.8,135.75,29.36]
[1741523090056,7.3667,135.77,135.73,62.0]
[1741523090253,2.248,135.79,135.73,62.0]
[1741523090654,9.614,135.79,135.75,7.3673]
[1741523090855,9.614,135.79,135.73,62.0]
[1741523091059,0.0504065,135.78,135.76,0.05004504]
[1741523091360,0.0504065,135.78,135.76,7.41714504]
[1741523091560,0.0504065,135.78,135.76,0.05004504]
[1741523091762,7.4169065,135.78,135.76,0.05004504]
[1741523091956,0.0504065,135.78,135.76,0.05004504]
[1741523092761,7.3667,135.77,135.76,0.05004504]
[1741523095665,0.0504065,135.78,135.76,0.05004504]
[1741523095869,7.4168065,135.78,135.76,0.05004504]
[1741523096867,0.0504065,135.78,135.76,0.05004504]
[1741523097064,7.3667,135.77,135.76,0.05004504]
[1741523097364,0.0504065,135.78,135.76,0.05004504]
[1741523097864,7.4168065,135.78,135.76,0.05004504]
[1741523098971,0.0504065,135.78,135.76,0.05004504]
[1741523099568,0.0504065,135.78,135.76,7.41704504]
[1741523099970,0.0504065,135.78,135.76,0.05004504]
[1741523100170,0.0504065,135.78,135.77,7.3667]
[1741523100974,0.0504065,135.78,135.76,29.37004504]
[1741523101967,7.4168065,135.78,135.76,29.37004504]
[1741523102182,0.0504065,135.78,135.76,36.73724504]
[1741523102469,0.0504065,135.78,135.76,29.37004504]
[1741523102670,0.0504065,135.78,135.77,7.3667]
[1741523102870,0.0504065,135.78,135.76,29.37004504]
[1741523103371,0.0504065,135.78,135.76,36.73694504]
[1741523104875,0.0504065,135.78,135.77,7.3667]
[1741523106277,0.0504065,135.78,135.76,29.37004504]
[1741523106973,0.0504065,135.78,135.77,7.3667]
[1741523110077,0.0504065,135.78,135.76,36.73704504]
[1741523110284,0.0504065,135.78,135.76,29.37004504]
[1741523115290,7.4170065,135.78,135.76,29.37004504]
[1741523115485,0.0504065,135.78,135.76,29.37004504]
[1741523115887,7.4167065,135.78,135.76,29.37004504]
[1741523117190,7.3667,135.77,135.76,0.05004504]
[1741523118089,0.0504065,135.78,135.76,0.05004504]
[1741523120195,0.0504065,135.78,135.76,29.33004504]
[1741523120394,0.0504065,135.78,135.77,7.3667]
[1741523120598,0.0504065,135.78,135.76,29.33004504]
[1741523121797,0.0504065,135.78,135.76,36.69704504]
[1741523122800,0.0504065,135.78,135.77,7.3667]
[1741523123401,0.0504065,135.78,135.76,36.69694504]
[1741523124000,0.0504065,135.78,135.77,7.3667]
[1741523129210,2.4203,135.83,135.76,250.27004504]
[1741523130012,7.3645,135.81,135.79,7.3655]
[1741523130205,0.04511553,135.81,135.76,250.22]
[1741523130405,0.04511553,135.81,135.79,0.05360266]
[1741523130606,7.40971553,135.81,135.79,7.41890266]
[1741523130809,7.40971553,135.81,135.79,0.05360266]
[1741523131314,7.365,135.8,135.79,0.05360266]
[1741523132809,0.04511553,135.81,135.76,220.94]
[1741523133011,7.3667,135.77,135.76,220.94]
[1741523133404,2.2306,135.82,135.73,62.0]
[1741523134114,0.05083285,135.79,135.76,0.04870411]
[1741523134618,0.05083285,135.79,135.73,62.0]
[1741523134911,29.31083285,135.79,135.71,250.18]
[1741523135115,7.3691,135.73,135.71,250.18]
[1741523135912,0.05543991,135.73,135.71,250.23028287]
[1741523136613,19.35608709,135.81,135.71,250.23028287]
[1741523136814,19.35608709,135.81,135.71,250.18]
[1741523137013,7.3666,135.78,135.74,7.3679]
[1741523137415,7.3666,135.78,135.71,250.18]
[1741523137617,19.35608709,135.81,135.71,250.18]
[1741523137816,0.04984789,135.76,135.73,0.04913316]
[1741523138007,0.04984789,135.76,135.75,7.3678]
[1741523138215,0.04984789,135.76,135.75,36.6278]
[1741523139220,7.3652,135.8,135.75,29.26]
[1741523139421,7.3652,135.8,135.77,7.3666]
[1741523140417,7.4073345,135.8,135.77,7.41749921]
[1741523140811,0.0421345,135.8,135.77,0.05089921]
[1741523141012,7.3661,135.78,135.77,0.05089921]
[1741523141220,0.0421345,135.8,135.77,0.05089921]
[1741523141412,7.3656,135.79,135.77,0.05089921]
[1741523142320,7.4073345,135.8,135.77,62.05089921]
[1741523142721,0.0421345,135.8,135.77,62.05089921]
[1741523143523,0.0421345,135.8,135.77,69.41739921]
[1741523143524,7.4072345,135.8,135.77,69.41739921]
[1741523145525,0.0421345,135.8,135.78,7.3661]
[1741523146222,7.3661,135.78,135.77,0.05089921]
[1741523148819,7.3661,135.78,135.75,220.94]
[1741523148820,7.3672,135.76,135.75,220.94]
[1741523149124,2.3411,135.77,135.69,250.16]
[1741523149325,2.3411,135.77,135.7,62.0]
[1741523149928,7.3689,135.73,135.72,0.05399709]
[1741523150132,0.04742099,135.75,135.72,0.05399709]
[1741523150629,0.04742099,135.75,135.73,7.3684]
[1741523150829,0.04742099,135.75,135.72,0.05399709]
[1741523151029,0.04742099,135.75,135.72,7.42319709]
[1741523152430,0.04742099,135.75,135.72,0.05399709]
[1741523152630,0.04742099,135.75,135.73,7.3688]
[1741523153433,0.04742099,135.75,135.72,7.42319709]
[1741523153627,0.04742099,135.75,135.72,0.05399709]
[1741523154525,7.3686,135.74,135.72,0.05399709]
[1741523155626,0.04742099,135.75,135.72,0.05399709]
[1741523156131,0.04742099,135.75,135.74,7.3683]
[1741523156633,0.04742099,135.75,135.74,69.3683]
[1741523157132,0.04742099,135.75,135.74,62.0]
[1741523158132,0.04742099,135.75,135.74,69.3683]
[1741523158830,7.3686,135.74,135.72,0.05399709]
[1741523159226,0.04742099,135.75,135.72,0.05399709]
[1741523159530,7.41542099,135.75,135.72,7.42319709]
[1741523160234,7.41542099,135.75,135.72,0.05399709]
[1741523160429,7.41542099,135.75,135.73,7.3688]
[1741523160732,7.3688,135.73,135.72,0.05399709]
[1741523161133,0.04742099,135.75,135.72,0.05399709]
[1741523161531,7.41542099,135.75,135.72,0.05399709]
[1741523161734,7.41542099,135.75,135.72,7.42309709]
[1741523162634,0.04742099,135.75,135.72,0.05399709]
[1741523162829,7.3686,135.74,135.72,0.05399709]
[1741523163035,0.04742099,135.75,135.72,0.05399709]
[1741523163434,0.04742099,135.75,135.73,7.3686]
[1741523164034,7.3684,135.74,135.72,0.05399709]
[1741523164238,0.04742099,135.75,135.72,0.05399709]
[1741523165539,7.3688,135.73,135.72,0.05399709]
[1741523165839,0.04742099,135.75,135.72,0.05399709]
[1741523166034,0.04742099,135.75,135.73,7.3688]
[1741523166230,0.04742099,135.75,135.73,69.3688]
[1741523166636,0.04742099,135.75,135.74,7.3683]
[1741523166834,0.04742099,135.75,135.73,62.0]
[1741523167242,7.41532099,135.75,135.73,7.3685]
[1741523167842,0.04742099,135.75,135.74,7.3683]
[1741523170642,0.04742099,135.75,135.73,62.0]
[1741523170847,0.04742099,135.75,135.73,69.3686]
[1741523171748,0.04742099,135.75,135.72,0.05399709]
[1741523171942,0.04742099,135.75,135.72,7.42329709]
[1741523172350,0.04742099,135.75,135.72,0.05399709]
[1741523173045,7.3688,135.73,135.72,0.05399709]
[1741523175855,7.3688,135.73,135.72,9.709e-05]
[1741523180559,11.0488,135.73,135.72,9.709e-05]
[1741523180960,7.3688,135.73,135.72,9.709e-05]
[1741523189668,36.5888,135.73,135.72,9.709e-05]
[1741523191070,7.3688,135.73,135.72,9.709e-05]
[1741523191368,36.5888,135.73,135.72,9.709e-05]
[1741523198867,40.2688,135.73,135.72,9.709e-05]
[1741523200571,40.2488,135.73,135.72,9.709e-05]
[1741523201168,62.3788,135.73,135.72,9.709e-05]
[1741523201462,63.66189122,135.73,135.72,9.709e-05]
[1741523201667,113.46937442,135.73,135.72,9.709e-05]
[1741523202272,84.26937442,135.73,135.72,9.709e-05]
[1741523202472,113.46937442,135.73,135.72,9.709e-05]
[1741523203374,112.1862832,135.73,135.72,9.709e-05]
[1741523203575,113.46937442,135.73,135.72,9.709e-05]
[1741523204075,84.26937442,135.73,135.72,9.709e-05]
[1741523204273,82.93694862,135.73,135.72,9.709e-05]
[1741523204873,27.92694862,135.73,135.72,9.709e-05]
[1741523205074,55.8438574,135.73,135.72,9.709e-05]
[1741523205269,59.5238574,135.73,135.72,9.709e-05]
[1741523207077,40.2488,135.73,135.72,9.709e-05]
[1741523210572,40.2488,135.73,135.62,2.3706]
[1741523210573,62.3788,135.73,135.51,221.16]
[1741523210870,22.13,135.69,135.53,7.0688]
[1741523211072,22.13,135.67,135.53,7.0688]
[1741523211272,7.3785,135.56,135.53,7.0688]
[1741523211877,7.379,135.55,135.53,7.11785339]
[1741523212073,0.05345064,135.56,135.53,7.11785339]
[1741523212276,0.05345064,135.56,135.53,0.04905339]
[1741523212470,7.3792,135.54,135.53,0.04905339]
[1741523212781,0.05345064,135.56,135.53,0.04905339]
[1741523214979,29.2,135.59,135.53,0.04905339]
[1741523215982,7.3791,135.55,135.53,0.04905339]
[1741523216279,0.0505849,135.57,135.53,0.04905339]
[1741523216872,7.3792,135.54,135.53,0.04905339]
[1741523217472,7.3792,135.54,135.53,5.339e-05]
[1741523224090,11.0592,135.54,135.53,5.339e-05]
[1741523226884,7.3792,135.54,135.53,5.339e-05]
[1741523227484,11.0592,135.54,135.53,5.339e-05]
[1741523227788,33.1892,135.54,135.53,5.339e-05]
[1741523228487,35.80276561,135.54,135.53,5.339e-05]
[1741523228981,28.42356561,135.54,135.4,7.2416]
[1741523229189,7.3863,135.41,135.4,7.2416]
[1741523230285,36.63447827,135.42,135.4,7.2416]
[1741523230985,29.24857827,135.42,135.4,7.2416]
[1741523231187,0.04857827,135.42,135.4,7.2416]
[1741523231879,7.385,135.44,135.4,7.2416]
[1741523232084,36.5846,135.45,135.4,7.2416]
[1741523232486,36.5846,135.45,135.41,7.3862]
[1741523232688,194.47557916,135.54,135.42,29.2]
[1741523232891,29.2,135.52,135.42,29.2]
[1741523233092,0.04927665,135.49,135.47,0.05482696]
[1741523233500,0.04927665,135.49,135.47,2.696e-05]
[1741523233689,29.2,135.48,135.47,2.696e-05]
[1741523233991,36.5824,135.48,135.47,2.696e-05]
[1741523236483,41.323,135.48,135.47,2.696e-05]
[1741523236685,262.5003,135.48,135.47,2.696e-05]
[1741523237610,263.78587971,135.48,135.47,2.696e-05]
[1741523237995,72.11318046,135.48,135.47,2.696e-05]
[1741523238399,44.95587971,135.48,135.47,2.696e-05]
[1741523238998,41.2591,135.48,135.47,2.696e-05]
[1741523239294,36.5824,135.48,135.47,2.696e-05]
[1741523241001,29.2,135.48,135.42,6.9825]
[1741523241606,7.3852,135.43,135.42,6.9825]
[1741523242099,0.05613525,135.44,135.42,6.9825]
[1741523242298,7.44093525,135.44,135.42,6.9825]
[1741523242499,0.05613525,135.44,135.42,6.9825]
[1741523242904,7.44093525,135.44,135.42,6.9825]
[1741523243300,7.44093525,135.44,135.42,4.5223]
[1741523243501,7.3857,135.42,135.41,0.05433185]
[1741523244706,7.3857,135.42,135.41,3.185e-05]
[1741523248610,0.05613525,135.44,135.41,3.185e-05]
[1741523249301,7.3857,135.42,135.41,3.185e-05]
[1741523250808,0.05613525,135.44,135.35,2.4434]
[1741523251009,29.2,135.45,135.35,2.4434]
[1741523251411,7.389,135.36,135.35,2.4434]
[1741523252000,0.05468593,135.37,135.35,2.4434]
[1741523252505,0.05468593,135.37,135.35,9.8329]
[1741523252709,0.05468593,135.37,135.35,2.4434]
[1741523253914,7.44338593,135.37,135.35,2.4434]
[1741523254412,7.389,135.36,135.35,2.4434]
[1741523254619,0.05468593,135.37,135.34,0.05244399]
[1741523255008,7.3895,135.35,135.34,0.05244399]
[1741523256009,7.3895,135.35,135.34,4.399e-05]
[1741523261614,29.25468593,135.37,135.34,4.399e-05]
[1741523261817,0.05468593,135.37,135.34,4.399e-05]
[1741523262320,7.3893,135.36,135.34,4.399e-05]
[1741523262917,7.3895,135.35,135.34,4.399e-05]
[1741523264227,7.3893,135.36,135.34,4.399e-05]
[1741523265018,7.3895,135.35,135.34,4.399e-05]
[1741523267019,36.5895,135.35,135.34,4.399e-05]
[1741523273832,7.3895,135.35,135.34,4.399e-05]
[1741523278226,36.5695,135.35,135.34,4.399e-05]
[1741523283736,0.05468593,135.37,135.34,4.399e-05]
[1741523284134,0.05468593,135.37,135.35,7.3895]
[1741523284944,30.5324258,135.41,135.36,7.389]
[1741523285146,141.49162624,135.42,135.36,7.389]
[1741523285336,7.3871,135.4,135.36,7.389]
[1741523285640,7.3871,135.4,135.35,221.7]
[1741523285842,7.3871,135.4,135.37,7.3884]
[1741523286040,0.05294874,135.39,135.37,7.3884]
[1741523286241,112.31162624,135.42,135.36,0.0552362]
[1741523286932,29.18,135.41,135.36,0.0552362]
[1741523287542,0.04749334,135.4,135.36,0.0552362]
[1741523287943,7.3877,135.39,135.36,0.0552362]
[1741523288142,0.04749334,135.4,135.37,7.3882]
[1741523288339,0.04749334,135.4,135.36,29.2352362]
[1741523288743,0.04749334,135.4,135.37,7.3883]
[1741523289547,0.04749334,135.4,135.36,29.2352362]
[1741523289750,0.04749334,135.4,135.37,2.2916]
[1741523290750,0.04749334,135.4,135.36,0.0552362]
[1741523291140,7.3878,135.39,135.36,0.0552362]
[1741523291448,0.04749334,135.4,135.36,0.0552362]
[1741523292252,7.3884,135.37,135.36,0.0552362]
[1741523293445,7.3884,135.37,135.36,3.62e-05]
[1741523293645,6.9839,135.39,135.3,29.16]
[1741523294046,6.9839,135.39,135.29,221.64]
[1741523294758,7.3912,135.33,135.29,221.64]
[1741523295151,0.05096148,135.35,135.3,0.05155174]
[1741523295351,7.44056148,135.35,135.3,0.05155174]
[1741523295554,0.05096148,135.35,135.33,7.3904]
[1741523296051,0.05096148,135.35,135.34,7.3901]
[1741523296253,29.16,135.42,135.31,29.16]
[1741523296957,29.16,135.42,135.32,62.0]
[1741523297157,7.3865,135.41,135.37,7.388]
[1741523297458,0.05526621,135.38,135.36,29.20712712]
[1741523297657,0.05526621,135.38,135.37,7.3884]
[1741523298460,29.16,135.42,135.36,29.20712712]
[1741523299055,36.5459,135.42,135.38,7.3875]
[1741523299458,0.04919442,135.41,135.38,7.3875]
[1741523299956,7.43569442,135.41,135.38,7.3875]
[1741523300259,0.04919442,135.41,135.37,229.0083]
[1741523300459,0.04919442,135.41,135.37,221.62]
[1741523302155,7.3879,135.38,135.37,221.62]
[1741523302361,0.04919442,135.41,135.36,0.04712712]
[1741523302558,2.49679442,135.41,135.36,0.04712712]
[1741523302763,7.3884,135.37,135.36,0.04712712]
[1741523303062,7.3884,135.37,135.36,2.712e-05]
[1741523313365,29.21366357,135.38,135.36,2.712e-05]
[1741523313570,0.05366357,135.38,135.36,2.712e-05]
[1741523316268,7.3884,135.37,135.36,2.712e-05]
[1741523318070,0.05366357,135.38,135.36,2.712e-05]
[1741523318272,7.44156357,135.38,135.36,2.712e-05]
[1741523319270,7.3884,135.37,135.36,2.712e-05]
[1741523319872,0.05366357,135.38,135.36,2.712e-05]
[1741523320672,7.2409,135.44,135.38,7.3876]
[1741523320673,7.3864,135.41,135.38,7.3876]
[1741523320872,36.3809,135.44,135.36,4.8381]
[1741523321166,7.3874,135.39,135.36,4.8381]
[1741523321778,7.44164843,135.39,135.36,12.27598549]
[1741523321977,0.05424843,135.39,135.36,12.27598549]
[1741523322877,0.05424843,135.39,135.37,7.3884]
[1741523324277,0.05424843,135.39,135.38,7.3879]
[1741523324778,0.05424843,135.39,135.36,4.88748549]
[1741523325074,0.05424843,135.39,135.37,7.3882]
[1741523325373,45.2972258,135.49,135.36,4.88748549]
[1741523325577,4.6021,135.48,135.36,4.8381]
[1741523325876,29.14,135.47,135.36,4.8381]
[1741523326077,29.14,135.47,135.39,7.387]
[1741523326275,7.386,135.42,135.39,7.387]
[1741523326778,7.386,135.42,135.39,0.05262529]
[1741523326974,7.3868,135.4,135.39,0.05262529]
[1741523328177,7.42247593,135.41,135.39,0.05262529]
[1741523328378,0.03617593,135.41,135.39,0.05262529]
[1741523329579,7.42257593,135.41,135.39,0.05262529]
[1741523330780,0.03617593,135.41,135.39,0.05262529]
[1741523330979,7.3868,135.4,135.39,0.05262529]
[1741523331682,7.3868,135.4,135.39,2.529e-05]
[1741523333282,7.42277593,135.41,135.39,2.529e-05]
[1741523333883,7.3868,135.4,135.39,2.529e-05]
[1741523335786,0.03617593,135.41,135.39,7.38712529]
[1741523336475,0.03617593,135.41,135.4,7.3868]
[1741523337685,0.03617593,135.41,135.39,7.38702529]
[1741523339290,0.03617593,135.41,135.39,2.529e-05]
[1741523339585,7.42267593,135.41,135.39,2.529e-05]
[1741523341084,0.03617593,135.41,135.39,2.529e-05]
[1741523341289,0.03617593,135.41,135.39,7.38732529]
[1741523342387,0.03617593,135.41,135.39,221.58002529]
[1741523342587,7.3848,135.44,135.39,221.58002529]
[1741523342779,7.3848,135.44,135.39,221.58]
[1741523343187,7.3848,135.44,135.4,29.1]
[1741523343384,7.3828,135.48,135.4,29.1]
[1741523343587,7.3828,135.48,135.45,7.3838]
[1741523343791,7.4354,135.48,135.45,7.3838]
[1741523344692,0.0526,135.48,135.43,0.05284879]
[1741523345787,0.0526,135.48,135.45,7.3836]
[1741523345989,0.0526,135.48,135.44,29.1]
[1741523346383,0.0526,135.48,135.44,33.7375]
[1741523347894,0.0526,135.48,135.45,7.3837]
[1741523348188,0.0526,135.48,135.44,33.7375]
[1741523348889,0.0526,135.48,135.46,7.3831]
[1741523349287,0.0526,135.48,135.44,36.1572]
[1741523349487,0.0526,135.48,135.47,7.383]
[1741523349988,7.381,135.51,135.48,7.3824]
[1741523351895,7.3793,135.54,135.51,7.3806]
[1741523352092,66.6481258,135.58,135.48,29.08]
[1741523352389,66.6481258,135.58,135.51,0.05155393]
[1741523352694,7.3807,135.52,135.51,0.05155393]
[1741523361094,7.38,135.53,135.51,0.05155393]
[1741523361700,7.0357,135.58,135.51,0.05155393]
[1741523361888,29.06,135.57,135.53,7.3797]
[1741523362298,7.3784,135.56,135.54,0.04670809]
[1741523363597,7.3778,135.57,135.54,0.04670809]
[1741523363798,7.0357,135.58,135.54,0.04670809]
[1741523364199,7.3786,135.55,135.54,0.04670809]
[1741523366601,17.03130765,135.65,135.54,0.04670809]
[1741523366805,7.0295,135.64,135.55,221.38]
[1741523367005,7.0295,135.64,135.58,0.04776107]
[1741523367199,7.3752,135.62,135.58,0.04776107]
[1741523370408,7.3752,135.62,135.58,7.42476107]
[1741523371012,36.0695,135.64,135.58,0.04776107]
[1741523371817,7.3752,135.62,135.58,7.42476107]
[1741523372307,7.3752,135.62,135.59,7.3764]
[1741523373013,7.3752,135.62,135.58,7.42456107]
[1741523374316,7.3757,135.61,135.58,7.42456107]
[1741523376424,7.3751,135.62,135.59,7.3763]
[1741523377025,7.3751,135.62,135.58,7.42446107]
[1741523377223,7.3753,135.62,135.58,7.42446107]
[1741523378527,36.0695,135.64,135.58,7.42446107]
[1741523378926,36.0695,135.64,135.59,7.3765]
[1741523379225,7.3753,135.62,135.59,7.3765]
[1741523380427,7.3754,135.61,135.58,7.42446107]
[1741523381518,29.02,135.67,135.58,0.04776107]
[1741523381723,29.02,135.67,135.56,29.06]
[1741523381924,2.3719,135.66,135.61,0.0482529]
[1741523382422,4.8073,135.65,135.61,0.0482529]
[1741523382625,7.3748,135.62,135.61,0.0482529]
[1741523384831,7.3768,135.59,135.55,221.38]
[1741523385626,7.3768,135.59,135.56,7.378]
[1741523386025,7.42421437,135.59,135.56,0.0507414]
[1741523386330,7.3771,135.58,135.56,0.0507414]
[1741523386630,7.3771,135.58,135.47,194.0]
[1741523386631,29.0,135.58,135.48,221.26]
[1741523386833,4.8038,135.57,135.48,221.26]
[1741523387032,4.8038,135.57,135.48,228.6421]
[1741523387729,7.3804,135.52,135.51,0.04906756]
[1741523390033,0.05489842,135.54,135.51,0.04906756]
[1741523390034,7.3799,135.53,135.51,0.04906756]
[1741523390832,7.43429842,135.54,135.51,0.04906756]
[1741523392026,0.05489842,135.54,135.51,0.04906756]
[1741523392833,7.3803,135.52,135.51,0.04906756]
[1741523394336,7.38,135.53,135.51,0.04906756]
[1741523395037,7.3803,135.52,135.51,0.04906756]
[1741523395734,7.3819,135.49,135.48,221.26]
[1741523399640,7.3824,135.48,135.47,0.04805452]
[1741523400642,7.3846,135.45,135.42,283.36]
[1741523401040,33.7325,135.49,135.42,283.36]
[1741523401436,33.7325,135.49,135.42,221.36]
[1741523401841,7.3852,135.43,135.42,221.36]
[1741523404644,29.04823405,135.44,135.42,221.36]
[1741523404845,0.04823405,135.44,135.42,221.36]
[1741523406739,0.04823405,135.44,135.41,0.05063188]
[1741523407148,0.04823405,135.44,135.42,7.3853]
[1741523407848,0.04823405,135.44,135.41,0.05063188]
[1741523408248,0.04823405,135.44,135.42,7.3854]
[1741523408648,7.43293405,135.44,135.41,0.05063188]
[1741523408846,0.04823405,135.44,135.41,0.05063188]
[1741523410048,7.43293405,135.44,135.41,7.43653188]
[1741523410252,0.04823405,135.44,135.41,0.05063188]
[1741523411151,0.04823405,135.44,135.42,7.3857]
[1741523411754,0.04823405,135.44,135.41,0.05063188]
[1741523412448,7.3857,135.42,135.41,0.05063188]
[1741523413352,222.0,135.43,135.32,1.28522362]
[1741523413653,193.0,135.42,135.27,4.8501]
[1741523413853,7.3912,135.32,135.27,4.8501]
[1741523414053,29.0,135.32,135.27,4.8501]
[1741523414451,0.0506623,135.31,135.28,0.04911452]
[1741523415752,7.4424623,135.31,135.28,0.04911452]